[Event "16th Spilimbergo Open 2018"]
[Site "Spilimbergo"]
[Date "2018.08.14"]
[Round "8.9"]
[White "Bove, Alessandro"]
[Black "Korpa, Bence"]
[Result "1/2-1/2"]
[ECO "B44"]
[WhiteElo "2308"]
[BlackElo "2506"]
[Annotator "ChessBase"]
[PlyCount "268"]
[EventDate "2018.08.10"]
[EventType "swiss"]
[EventCountry "ITA"]
[SourceTitle "playchess.com"]
[Source "ChessBase"]
[SourceQuality "1"]
[TimeControl "5400+30"]

1. c4 {[%emt 0:00:30]} c5 {[%emt 0:11:30]} 2. Nf3 {[%emt 0:00:00]} Nf6 {[%emt 0:00:30]} 3. Nc3 {[%emt 0:01:00]} Nc6 {[%emt 0:00:00]} 4. d4 {[%emt 0:00:00]} cxd4 {[%emt 0:00:00]} 5. Nxd4 {[%emt 0:00:00]} e6 {[%emt 0:00:30]} 6. e4 {[%emt 0:00:30]} Bb4 {[%emt 0:02:30]} 7. Nxc6 {[%emt 0:01:30]} dxc6 {[%emt 0:00:30]} 8. Qxd8+ {[%emt 0:00:30]} Kxd8 {[%emt 0:00:00]} 9. e5 {[%emt 0:02:30]} Nd7 {[%emt 0:01:00]} 10. f4 {[%emt 0:01:30]} Bxc3+ {[%emt 0:01:30]} 11. bxc3 {[%emt 0:00:00]} b6 {[%emt 0:00:00]} 12. h4 {[%emt 0:06:00]} h5 {[%emt 0:03:00]} 13. Rh3 {[%emt 0:19:30]} Bb7 {[%emt 0:01:30]} 14. Rd3 {[%emt 0:02:30]} Kc7 {[%emt 0:00:30]} 15. Be3 {[%emt 0:01:30]} c5 {[%emt 0:00:30]} 16. Rad1 {[%emt 0:01:30]} Rad8 {[%emt 0:01:30]} 17. Kf2 {[%emt 0:20:30]} Be4 {[%emt 0:02:30]} 18. Rd6 {[%emt 0:03:30]} Nb8 {[%emt 0:00:30]} 19. Rxd8 {[%emt 0:08:30]} Rxd8 {[%emt 0:00:00]} 20. Rxd8 {[%emt 0:00:00]} Kxd8 {[%emt 0:00:00]} 21. Be2 {[%emt 0:00:00]} g6 {[%emt 0:00:30]} 22. g4 {[%emt 0:04:30]} hxg4 {[%emt 0:00:00]} 23. Bxg4 {[%emt 0:00:00]} Nc6 {[%emt 0:03:00]} 24. h5 {[%emt 0:01:00]} gxh5 {[%emt 0:00:00]} 25. Bxh5 {[%emt 0:00:00]} Ke7 {[%emt 0:01:00]} 26. Be2 {[%emt 0:02:00]} Na5 {[%emt 0:00:30]} 27. Kg3 {[%emt 0:01:30]} Bb1 {[%emt 0:00:30]} 28. a3 {[%emt 0:00:30]} Ba2 {[%emt 0:00:00]} 29. Kg4 {[%emt 0:00:00]} Bxc4 {[%emt 0:00:00]} 30. Bd1 {[%emt 0:00:00]} Bd3 {[%emt 0:00:30]} 31. Kg5 {[%emt 0:00:30]} Kf8 {[%emt 0:24:30]} 32. Kf6 {[%emt 0:00:30]} Nc6 {[%emt 0:00:30]} 33. Bf3 {[%emt 0:04:30]} Ne7 {[%emt 0:00:30]} 34. Kg5 {[%emt 0:00:30]} Kg7 {[%emt 0:02:30]} 35. Bd2 {[%emt 0:02:08]} Ng6 {[%emt 0:03:30]} 36. Bg4 {[%emt 0:11:36]} Bc2 {[%emt 0:03:30]} 37. Be1 {[%emt 0:00:33]} Be4 {[%emt 0:02:30]} 38. Bd2 {[%emt 0:00:27]} Ne7 {[%emt 0:00:30]} 39. Bh3 {[%emt 0:01:19]} Bf5 {[%emt 0:01:30]} 40. Bg2 {[%emt 0:00:36]} Ng8 {[%emt 0:00:00]} 41. Bf3 {[%emt 0:00:26]} f6+ {[%emt 0:01:00]} 42. exf6+ {[%emt 0:01:13]} Nxf6 {[%emt 0:00:30]} 43. Be1 {[%emt 0:00:04]} Be4 {[%emt 0:03:30]} 44. Be2 {[%emt 0:00:02]} Nh7+ {[%emt 0:00:30]} 45. Kh5 {[%emt 0:00:42]} Bg6+ {[%emt 0:00:30]} 46. Kg4 {[%emt 0:00:42]} Nf6+ {[%emt 0:00:30]} 47. Kg5 {[%emt 0:00:13]} Ne4+ {[%emt 0:00:00]} 48. Kg4 {[%emt 0:00:03]} Kh6 {[%emt 0:00:00]} 49. Kh4 {[%emt 0:00:40]} Nd6 {[%emt 0:05:30]} 50. Bf2 {[%emt 0:01:42]} Be8 {[%emt 0:02:30]} 51. Bg4 {[%emt 0:01:53]} Bd7 {[%emt 0:00:30]} 52. Be3 {[%emt 0:00:12]} Kg6 {[%emt 0:00:00]} 53. Bc1 {[%emt 0:00:46]} Kf6 {[%emt 0:01:00]} 54. Kg3 {[%emt 0:00:21]} Bc6 {[%emt 0:03:30]} 55. Kf2 {[%emt 0:00:12]} Bd5 {[%emt 0:00:30]} 56. Ke3 {[%emt 0:00:16]} Ke7 {[%emt 0:00:00]} 57. Kd3 {[%emt 0:01:28]} Be4+ {[%emt 0:00:00]} 58. Ke3 {[%emt 0:00:12]} Kd7 {[%emt 0:00:30]} 59. Be2 {[%emt 0:01:18]} Bd5 {[%emt 0:00:30]} 60. Bd2 {[%emt 0:02:57]} Kc6 {[%emt 0:00:30]} 61. Be1 {[%emt 0:00:09]} Bc4 {[%emt 0:00:30]} 62. Bd1 {[%emt 0:00:02]} Kb5 {[%emt 0:05:30]} 63. Kd2 {[%emt 0:00:09]} Bd5 {[%emt 0:00:30]} 64. Kc2 {[%emt 0:00:42]} Be4+ {[%emt 0:01:09]} 65. Kb3 {[%emt 0:00:42]} Kc6 {[%emt 0:00:08]} 66. Be2 {[%emt 0:00:49]} Kd5 {[%emt 0:00:24]} 67. c4+ {[%emt 0:00:55]} Kc6 {[%emt 0:00:19]} 68. Kc3 {[%emt 0:00:03]} Bg2 {[%emt 0:01:33]} 69. Bd3 {[%emt 0:00:06]} Bh3 {[%emt 0:00:38]} 70. Be2 {[%emt 0:00:37]} Kd7 {[%emt 0:00:24]} 71. Kb3 {[%emt 0:01:16]} Ke8 {[%emt 0:00:28]} 72. Bh4 {[%emt 0:00:30]} Nf5 {[%emt 0:02:08]} 73. Bf6 {[%emt 0:00:05]} Kf7 {[%emt 0:01:18]} 74. Be5 {[%emt 0:00:08]} Nd4+ {[%emt 0:02:31]} 75. Bxd4 {[%emt 0:00:03]} cxd4 {[%emt 0:00:02]} 76. c5 {[%emt 0:01:22]} bxc5 {[%emt 0:06:59]} 77. Kc4 {[%emt 0:00:03]} Kf6 {[%emt 0:00:10]} 78. Kxc5 {[%emt 0:00:06]} Kf5 {[%emt 0:00:00]} 79. Kxd4 {[%emt 0:00:15]} Kxf4 {[%emt 0:00:01]} 80. Kd3 {[%emt 0:01:12]} e5 {[%emt 0:00:57]} 81. Kd2 {[%emt 0:00:12]} Ke4 {[%emt 0:00:05]} 82. Bd3+ {[%emt 0:01:23]} Kd4 {[%emt 0:00:04]} 83. Bg6 {[%emt 0:00:03]} Be6 {[%emt 0:00:22]} 84. Bh7 {[%emt 0:00:34]} Bd5 {[%emt 0:00:59]} 85. Bg6 {[%emt 0:00:17]} e4 {[%emt 0:06:32]} 86. Kc2 {[%emt 0:00:43]} e3 {[%emt 0:00:12]} 87. Bh5 {[%emt 0:00:01]} Be4+ {[%emt 0:00:14]} 88. Kd1 {[%emt 0:01:55]} a5 {[%emt 0:00:33]} 89. Be8 {[%emt 0:00:16]} Bd3 {[%emt 0:00:10]} 90. a4 {[%emt 0:00:47]} Kc3 {[%emt 0:00:14]} 91. Bd7 {[%emt 0:00:03]} Kb4 {[%emt 0:00:11]} 92. Bc6 {[%emt 0:00:19]} Bc4 {[%emt 0:00:06]} 93. Bd7 {[%emt 0:00:04]} Bb3+ {[%emt 0:00:10]} 94. Ke2 {[%emt 0:00:03]} Bxa4 {[%emt 0:00:04]} 95. Bg4 {[%emt 0:01:20]} Bb3 {[%emt 0:03:30]} 96. Bd7 {[%emt 0:00:05]} Ba4 {[%emt 0:00:14]} 97. Bg4 {[%emt 0:00:03]} Kc3 {[%emt 0:01:05]} 98. Kxe3 {[%emt 0:00:08]} Kc2 {[%emt 0:00:02]} 99. Bf5+ {[%emt 0:01:36]} Kc1 {[%emt 0:00:14]} 100. Kd4 {[%emt 0:00:14]} Kb2 {[%emt 0:00:10]} 101. Bg4 {[%emt 0:00:38]} Kc2 {[%emt 0:00:19]} 102. Bf5+ {[%emt 0:00:57]} Kb3 {[%emt 0:00:07]} 103. Bg4 {[%emt 0:00:12]} Kc2 {[%emt 0:00:55]} 104. Bf5+ {[%emt 0:00:03]} Kb2 {[%emt 0:00:14]} 105. Bg4 {[%emt 0:00:10]} Be8 {[%emt 0:00:06]} 106. Bd1 {[%emt 0:00:07]} Kc1 {[%emt 0:00:02]} 107. Bb3 {[%emt 0:00:04]} Kd2 {[%emt 0:00:04]} 108. Kc5 {[%emt 0:01:08]} Kc3 {[%emt 0:00:08]} 109. Bd1 {[%emt 0:00:11]} Bd7 {[%emt 0:00:40]} 110. Kb6 {[%emt 0:00:51]} Kb4 {[%emt 0:00:05]} 111. Bc2 {[%emt 0:00:05]} Bg4 {[%emt 0:00:08]} 112. Ka6 {[%emt 0:00:21]} Bf3 {[%emt 0:00:04]} 113. Kb6 {[%emt 0:00:06]} Be2 {[%emt 0:00:03]} 114. Kc7 {[%emt 0:01:02]} Kc5 {[%emt 0:00:34]} 115. Kb7 {[%emt 0:00:31]} Kb5 {[%emt 0:00:34]} 116. Kc7 {[%emt 0:00:06]} Bc4 {[%emt 0:00:20]} 117. Bd1 {[%emt 0:00:24]} Bd5 {[%emt 0:00:52]} 118. Kd6 {[%emt 0:01:21]} Bf7 {[%emt 0:02:43]} 119. Kc7 {[%emt 0:00:09]} Bg8 {[%emt 0:00:16]} 120. Bc2 {[%emt 0:00:57]} Bc4 {[%emt 0:00:10]} 121. Bd1 {[%emt 0:00:08]} Bd3 {[%emt 0:00:34]} 122. Kb7 {[%emt 0:00:06]} Bf5 {[%emt 0:00:11]} 123. Be2+ {[%emt 0:00:56]} Kc5 {[%emt 0:00:20]} 124. Bd1 {[%emt 0:00:05]} Bd3 {[%emt 0:00:04]} 125. Kc7 {[%emt 0:00:17]} Be4 {[%emt 0:00:08]} 126. Ba4 {[%emt 0:00:47]} Bf3 {[%emt 0:01:54]} 127. Bc2 {[%emt 0:00:07]} Bd5 {[%emt 0:00:08]} 128. Bd1 {[%emt 0:00:09]} Kb5 {[%emt 0:00:22]} 129. Kd6 {[%emt 0:00:15]} Ba2 {[%emt 0:00:28]} 130. Kc7 {[%emt 0:00:06]} Bc4 {[%emt 0:00:10]} 131. Kb7 {[%emt 0:00:24]} Kc5 {[%emt 0:00:10]} 132. Kc7 {[%emt 0:00:09]} Bd5 {[%emt 0:00:13]} 133. Bc2 {[%emt 0:00:33]} Bf3 {[%emt 0:00:13]} 134. Ba4 {[%emt 0:00:14]} Kb4 {[%emt 0:01:00]} 1/2-1/2

[Event "16th Spilimbergo Open 2018"]
[Site "Spilimbergo"]
[Date "2018.08.14"]
[Round "8.11"]
[White "Sonis, Francesco"]
[Black "Solomon, Kenny"]
[Result "1-0"]
[ECO "A30"]
[WhiteElo "2468"]
[BlackElo "2395"]
[Annotator "ChessBase"]
[PlyCount "107"]
[EventDate "2018.08.10"]
[EventType "swiss"]
[EventCountry "ITA"]
[SourceTitle "playchess.com"]
[Source "ChessBase"]
[SourceQuality "1"]
[TimeControl "5400+30"]

1. Nf3 {[%emt 0:00:30]} Nf6 {[%emt 0:00:30]} 2. c4 {[%emt 0:00:00]} b6 {[%emt 0:01:30]} 3. g3 {[%emt 0:00:00]} c5 {[%emt 0:00:30]} 4. Bg2 {[%emt 0:00:00]} Bb7 {[%emt 0:00:00]} 5. O-O {[%emt 0:00:00]} g6 {[%emt 0:00:00]} 6. Nc3 {[%emt 0:01:30]} Bg7 {[%emt 0:00:30]} 7. d4 {[%emt 0:00:30]} cxd4 {[%emt 0:00:00]} 8. Nxd4 {[%emt 0:00:00]} Bxg2 {[%emt 0:00:00]} 9. Kxg2 {[%emt 0:00:00]} Qc8 {[%emt 0:05:30]} 10. b3 {[%emt 0:00:00]} d5 {[%emt 0:09:30]} 11. Nxd5 {[%emt 0:00:00]} Nxd5 {[%emt 0:00:30]} 12. cxd5 {[%emt 0:00:30]} Qc5 {[%emt 0:00:30]} 13. Nf3 {[%emt 0:10:30]} Bxa1 {[%emt 0:01:30]} 14. Be3 {[%emt 0:00:30]} Qb5 {[%emt 0:03:30]} 15. Qxa1 {[%emt 0:00:00]} f6 {[%emt 0:00:30]} 16. Qd4 {[%emt 0:03:00]} Na6 {[%emt 0:12:30]} 17. Qe4 {[%emt 0:17:30]} Rd8 {[%emt 0:12:30]} 18. Rd1 {[%emt 0:00:30]} O-O {[%emt 0:09:30]} 19. Bh6 {[%emt 0:10:30]} Rf7 {[%emt 0:01:30]} 20. h4 {[%emt 0:00:30]} Nc7 {[%emt 0:13:30]} 21. h5 {[%emt 0:02:30]} g5 {[%emt 0:02:30]} 22. Qf5 {[%emt 0:26:30]} Qd7 {[%emt 0:06:41]} 23. Qc2 {[%emt 0:02:30]} Nxd5 {[%emt 0:08:34]} 24. Rd2 {[%emt 0:00:30]} Nf4+ {[%emt 0:07:48]} 25. Kg1 {[%emt 0:04:38]} Nxe2+ {[%emt 0:01:16]} 26. Kh2 {[%emt 0:01:55]} Qc8 {[%emt 0:00:49]} 27. Qxc8 {[%emt 0:01:18]} Rxc8 {[%emt 0:00:02]} 28. Rxe2 {[%emt 0:00:06]} e5 {[%emt 0:00:50]} 29. Ne1 {[%emt 0:01:00]} Rd7 {[%emt 0:01:23]} 30. f4 {[%emt 0:01:17]} exf4 {[%emt 0:00:08]} 31. gxf4 {[%emt 0:00:04]} gxf4 {[%emt 0:00:24]} 32. Bxf4 {[%emt 0:00:13]} Kf7 {[%emt 0:00:51]} 33. Ng2 {[%emt 0:00:38]} Rd5 {[%emt 0:00:35]} 34. h6 {[%emt 0:00:15]} Rh5+ {[%emt 0:00:06]} 35. Kg3 {[%emt 0:00:28]} Rg8+ {[%emt 0:00:40]} 36. Kf2 {[%emt 0:00:22]} Rf5 {[%emt 0:00:14]} 37. Kf3 {[%emt 0:00:04]} Rd5 {[%emt 0:00:20]} 38. Rc2 {[%emt 0:00:16]} Rd7 {[%emt 0:00:52]} 39. Ne3 {[%emt 0:00:19]} Rgd8 {[%emt 0:00:48]} 40. Rc6 {[%emt 0:01:52]} Re8 {[%emt 0:00:13]} 41. Kg4 {[%emt 0:02:18]} Re6 {[%emt 0:00:25]} 42. Rc2 {[%emt 0:00:25]} Kg6 {[%emt 0:00:30]} 43. Rg2 {[%emt 0:00:24]} Kf7 {[%emt 0:00:52]} 44. Kf5 {[%emt 0:00:18]} Ree7 {[%emt 0:00:33]} 45. Rg7+ {[%emt 0:00:46]} Kf8 {[%emt 0:00:02]} 46. Kxf6 {[%emt 0:00:50]} Rf7+ {[%emt 0:00:49]} 47. Rxf7+ {[%emt 0:00:06]} Rxf7+ {[%emt 0:00:02]} 48. Ke5 {[%emt 0:00:13]} Rd7 {[%emt 0:00:14]} 49. Nd5 {[%emt 0:00:20]} Kf7 {[%emt 0:00:05]} 50. Nf6 {[%emt 0:00:29]} Rd8 {[%emt 0:01:50]} 51. Kf5 {[%emt 0:01:29]} Rh8 {[%emt 0:00:33]} 52. Be5 {[%emt 0:00:03]} b5 {[%emt 0:00:15]} 53. b4 {[%emt 0:00:03]} a6 {[%emt 0:00:42]} 54. a3 {[%emt 0:00:02]} 1-0

[Event "16th Spilimbergo Open 2018"]
[Site "Spilimbergo"]
[Date "2018.08.14"]
[Round "8.13"]
[White "Aghayev, Miragha"]
[Black "Rahul Srivatshav P"]
[Result "1/2-1/2"]
[ECO "B07"]
[WhiteElo "2424"]
[BlackElo "2388"]
[Annotator "NA"]
[PlyCount "104"]
[EventDate "2018.08.10"]
[EventType "swiss"]
[EventCountry "ITA"]
[SourceTitle "playchess.com"]
[Source "ChessBase"]
[SourceQuality "1"]
[TimeControl "5400+30"]

1. d4 {[%emt 0:01:30]} Nf6 {[%emt 0:00:30]} 2. Nf3 {[%emt 0:00:30]} g6 {[%emt 0:00:00]} 3. g3 {[%emt 0:00:30]} Bg7 {[%emt 0:00:00]} 4. Bg2 {[%emt 0:00:00]} O-O {[%emt 0:00:30]} 5. O-O {[%emt 0:00:00]} d6 {[%emt 0:00:00]} 6. Nc3 {[%emt 0:00:00]} Nbd7 {[%emt 0:03:00]} 7. e4 {[%emt 0:00:00]} e5 {[%emt 0:00:00]} 8. Re1 {[%emt 0:00:30]} c6 {[%emt 0:05:00]} 9. a4 {[%emt 0:01:30]} a5 {[%emt 0:05:30]} 10. h3 {[%emt 0:00:00]} Re8 {[%emt 0:02:30]} 11. Be3 {[%emt 0:03:00]} b6 {[%emt 0:09:30]} 12. Qd2 {[%emt 0:01:30]} Ba6 {[%emt 0:02:30]} 13. Rad1 {[%emt 0:03:30]} Qc8 {[%emt 0:03:30]} 14. Bh6 {[%emt 0:06:30]} Qc7 {[%emt 0:09:30]} 15. b3 {[%emt 0:04:30]} Rad8 {[%emt 0:08:30]} 16. Bg5 {[%emt 0:00:30]} Rc8 {[%emt 0:02:30]} 17. Kh2 {[%emt 0:13:30]} Nf8 {[%emt 0:06:30]} 18. Kg1 {[%emt 0:10:30]} N8d7 {[%emt 0:00:30]} 19. Kh1 {[%emt 0:11:30]} Nf8 {[%emt 0:03:30]} 20. Kh2 {[%emt 0:01:30]} N8d7 {[%emt 0:01:30]} 21. Bh6 {[%emt 0:03:30]} Bb7 {[%emt 0:02:30]} 22. Bf1 {[%emt 0:00:30]} Bxh6 {[%emt 0:06:30]} 23. Qxh6 {[%emt 0:00:30]} d5 {[%emt 0:00:00]} 24. exd5 {[%emt 0:10:30]} e4 {[%emt 0:03:00]} 25. d6 {[%emt 0:00:30]} Qxd6 {[%emt 0:00:30]} 26. Ng5 {[%emt 0:00:30]} c5 {[%emt 0:05:30]} 27. Nb5 {[%emt 0:06:30]} Qe7 {[%emt 0:03:50]} 28. d5 {[%emt 0:03:00]} Ne5 {[%emt 0:02:44]} 29. Rxe4 {[%emt 0:05:03]} Qf8 {[%emt 0:00:18]} 30. Qxf8+ {[%emt 0:00:21]} Kxf8 {[%emt 0:00:04]} 31. Ree1 {[%emt 0:00:57]} h6 {[%emt 0:02:37]} 32. f4 {[%emt 0:00:27]} Neg4+ {[%emt 0:03:19]} 33. hxg4 {[%emt 0:00:06]} Nxg4+ {[%emt 0:00:43]} 34. Kg1 {[%emt 0:00:34]} hxg5 {[%emt 0:01:16]} 35. Bh3 {[%emt 0:01:57]} Rxe1+ {[%emt 0:03:25]} 36. Rxe1 {[%emt 0:00:15]} f5 {[%emt 0:00:01]} 37. Bxg4 {[%emt 0:00:51]} fxg4 {[%emt 0:00:07]} 38. Nd6 {[%emt 0:00:35]} Rd8 {[%emt 0:01:06]} 39. Nxb7 {[%emt 0:01:28]} Rd7 {[%emt 0:00:01]} 40. fxg5 {[%emt 0:01:29]} Rxb7 {[%emt 0:00:05]} 41. c4 {[%emt 0:00:10]} Re7 {[%emt 0:00:39]} 42. Rxe7 {[%emt 0:00:12]} Kxe7 {[%emt 0:00:09]} 43. Kf2 {[%emt 0:00:04]} Kd6 {[%emt 0:00:00]} 44. Ke2 {[%emt 0:00:37]} Ke5 {[%emt 0:00:05]} 45. Kd3 {[%emt 0:02:04]} Kf5 {[%emt 0:00:09]} 46. Kd2 {[%emt 0:01:29]} Ke5 {[%emt 0:00:05]} 47. Ke2 {[%emt 0:00:00]} Kf5 {[%emt 0:00:06]} 48. Kf2 {[%emt 0:00:09]} Ke5 {[%emt 0:00:07]} 49. Ke3 {[%emt 0:00:02]} Kf5 {[%emt 0:00:03]} 50. d6 {[%emt 0:00:06]} Ke6 {[%emt 0:00:03]} 51. Kf4 {[%emt 0:01:06]} Kxd6 {[%emt 0:00:03]} 52. Ke4 {[%emt 0:00:03]} Ke6 {[%emt 0:00:03]} 1/2-1/2

[Event "16th Spilimbergo Open 2018"]
[Site "Spilimbergo"]
[Date "2018.08.14"]
[Round "8.14"]
[White "Aleksic, Nenad"]
[Black "Altini, Nicola"]
[Result "1/2-1/2"]
[ECO "C54"]
[WhiteElo "2307"]
[BlackElo "2425"]
[Annotator "NA"]
[PlyCount "57"]
[EventDate "2018.08.10"]
[EventType "swiss"]
[EventCountry "ITA"]
[SourceTitle "playchess.com"]
[Source "ChessBase"]
[SourceQuality "1"]
[TimeControl "5400+30"]

1. e4 {[%emt 0:11:30]} e5 {[%emt 0:00:30]} 2. Nf3 {[%emt 0:00:30]} Nc6 {[%emt 0:00:00]} 3. Bc4 {[%emt 0:00:30]} Bc5 {[%emt 0:00:00]} 4. c3 {[%emt 0:00:30]} Nf6 {[%emt 0:00:00]} 5. d3 {[%emt 0:00:00]} d6 {[%emt 0:00:00]} 6. Nbd2 {[%emt 0:01:00]} a6 {[%emt 0:00:00]} 7. Bb3 {[%emt 0:00:30]} Ba7 {[%emt 0:00:00]} 8. h3 {[%emt 0:00:00]} O-O {[%emt 0:00:30]} 9. Nf1 {[%emt 0:00:00]} h6 {[%emt 0:03:30]} 10. Ng3 {[%emt 0:00:30]} d5 {[%emt 0:01:30]} 11. O-O {[%emt 0:11:30]} Re8 {[%emt 0:05:30]} 12. exd5 {[%emt 0:12:30]} Nxd5 {[%emt 0:00:30]} 13. Re1 {[%emt 0:00:30]} Be6 {[%emt 0:09:30]} 14. Bd2 {[%emt 0:28:30]} Qd6 {[%emt 0:16:30]} 15. Qe2 {[%emt 0:05:30]} Nf6 {[%emt 0:20:30]} 16. Ne4 {[%emt 0:04:30]} Nxe4 {[%emt 0:00:30]} 17. dxe4 {[%emt 0:00:00]} Ne7 {[%emt 0:01:30]} 18. Rad1 {[%emt 0:00:00]} Bxb3 {[%emt 0:00:30]} 19. axb3 {[%emt 0:03:18]} Qe6 {[%emt 0:05:30]} 20. b4 {[%emt 0:00:20]} Ng6 {[%emt 0:00:30]} 21. Bc1 {[%emt 0:04:31]} Rad8 {[%emt 0:01:30]} 22. Rd3 {[%emt 0:02:14]} Qf6 {[%emt 0:01:30]} 23. Red1 {[%emt 0:00:57]} Rxd3 {[%emt 0:07:30]} 24. Rxd3 {[%emt 0:00:02]} Rd8 {[%emt 0:00:30]} 25. g3 {[%emt 0:01:09]} Rd6 {[%emt 0:01:30]} 26. Kg2 {[%emt 0:01:54]} Qe6 {[%emt 0:02:30]} 27. Rxd6 {[%emt 0:01:42]} Qxd6 {[%emt 0:01:30]} 28. h4 {[%emt 0:01:02]} Ne7 {[%emt 0:03:19]} 29. Be3 {[%emt 0:00:00]} 1/2-1/2

[Event "16th Spilimbergo Open 2018"]
[Site "Spilimbergo"]
[Date "2018.08.14"]
[Round "8.15"]
[White "Collutiis, Duilio"]
[Black "Vezzosi, Paolo"]
[Result "1/2-1/2"]
[ECO "B38"]
[WhiteElo "2415"]
[BlackElo "2301"]
[Annotator "NA"]
[PlyCount "55"]
[EventDate "2018.08.10"]
[EventType "swiss"]
[EventCountry "ITA"]
[SourceTitle "playchess.com"]
[Source "ChessBase"]
[SourceQuality "1"]
[TimeControl "5400+30"]

1. c4 {[%emt 0:00:30]} c5 {[%emt 0:00:30]} 2. Nf3 {[%emt 0:00:30]} Nc6 {[%emt 0:00:30]} 3. d4 {[%emt 0:00:30]} cxd4 {[%emt 0:00:30]} 4. Nxd4 {[%emt 0:00:30]} Nf6 {[%emt 0:01:30]} 5. Nc3 {[%emt 0:00:30]} g6 {[%emt 0:00:30]} 6. e4 {[%emt 0:00:30]} d6 {[%emt 0:00:30]} 7. Be2 {[%emt 0:01:30]} Bg7 {[%emt 0:00:30]} 8. Be3 {[%emt 0:01:30]} Bd7 {[%emt 0:01:30]} 9. O-O {[%emt 0:00:30]} O-O {[%emt 0:00:00]} 10. Qd2 {[%emt 0:04:30]} a5 {[%emt 0:01:00]} 11. f3 {[%emt 0:00:30]} Nxd4 {[%emt 0:03:30]} 12. Bxd4 {[%emt 0:00:30]} Bc6 {[%emt 0:00:30]} 13. b3 {[%emt 0:03:30]} Nd7 {[%emt 0:02:30]} 14. Be3 {[%emt 0:00:30]} Nc5 {[%emt 0:05:30]} 15. Rab1 {[%emt 0:05:30]} f5 {[%emt 0:05:30]} 16. exf5 {[%emt 0:00:00]} gxf5 {[%emt 0:00:30]} 17. Nd5 {[%emt 0:00:00]} Bxd5 {[%emt 0:03:30]} 18. Qxd5+ {[%emt 0:04:30]} e6 {[%emt 0:00:30]} 19. Qd2 {[%emt 0:00:30]} Qc7 {[%emt 0:04:30]} 20. Qd5 {[%emt 0:16:30]} Qd8 {[%emt 0:00:30]} 21. Qd2 {[%emt 0:00:30]} Qc7 {[%emt 0:00:30]} 22. Kh1 {[%emt 0:00:00]} Rad8 {[%emt 0:02:30]} 23. Qc2 {[%emt 0:03:00]} f4 {[%emt 0:01:30]} 24. Bg1 {[%emt 0:00:30]} Be5 {[%emt 0:01:30]} 25. a3 {[%emt 0:03:30]} Ra8 {[%emt 0:00:30]} 26. Rbd1 {[%emt 0:03:30]} Qg7 {[%emt 0:00:30]} 27. Bd3 {[%emt 0:01:30]} Rac8 {[%emt 0:04:30]} 28. Rfe1 {[%emt 0:01:30]} 1/2-1/2

[Event "16th Spilimbergo Open 2018"]
[Site "Spilimbergo"]
[Date "2018.08.14"]
[Round "8.16"]
[White "Della Pietra, Andrea"]
[Black "Beletic, Daniel"]
[Result "1/2-1/2"]
[ECO "A41"]
[WhiteElo "2212"]
[BlackElo "2374"]
[Annotator "NA"]
[PlyCount "29"]
[EventDate "2018.08.10"]
[EventType "swiss"]
[EventCountry "ITA"]
[SourceTitle "playchess.com"]
[Source "ChessBase"]
[SourceQuality "1"]
[TimeControl "5400+30"]

1. d4 {[%emt 0:00:30]} d6 {[%emt 0:02:30]} 2. c4 {[%emt 0:00:30]} e5 {[%emt 0:01:30]} 3. d5 {[%emt 0:00:30]} f5 {[%emt 0:00:30]} 4. e4 {[%emt 0:00:00]} fxe4 {[%emt 0:00:30]} 5. Nc3 {[%emt 0:00:00]} Nf6 {[%emt 0:00:30]} 6. Nge2 {[%emt 0:00:30]} Bf5 {[%emt 0:00:00]} 7. Ng3 {[%emt 0:00:30]} Bg6 {[%emt 0:00:00]} 8. Bg5 {[%emt 0:01:30]} Be7 {[%emt 0:04:30]} 9. Bxf6 {[%emt 0:00:00]} Bxf6 {[%emt 0:02:30]} 10. Ngxe4 {[%emt 0:01:00]} O-O {[%emt 0:00:30]} 11. Bd3 {[%emt 0:01:30]} Nd7 {[%emt 0:02:30]} 12. Qc2 {[%emt 0:07:30]} Bg5 {[%emt 0:03:30]} 13. h4 {[%emt 0:17:30]} Bh6 {[%emt 0:04:30]} 14. g4 {[%emt 0:15:30]} Bf4 {[%emt 0:04:30]} 15. h5 {[%emt 0:03:30]} 1/2-1/2

[Event "16th Spilimbergo Open 2018"]
[Site "Spilimbergo"]
[Date "2018.08.15"]
[Round "9.4"]
[White "Lodici, Lorenzo"]
[Black "Borisek, Jure"]
[Result "1-0"]
[ECO "D20"]
[WhiteElo "2447"]
[BlackElo "2576"]
[Annotator "RC"]
[PlyCount "71"]
[EventDate "2018.08.10"]
[EventType "swiss"]
[EventCountry "ITA"]
[SourceTitle "playchess.com"]
[Source "ChessBase"]
[SourceQuality "1"]
[TimeControl "5400+30"]

1. d4 {[%emt 0:00:30]} d5 {[%emt 0:00:30]} 2. c4 {[%emt 0:00:00]} dxc4 {[%emt 0:00:00]} 3. e4 {[%emt 0:00:00]} e5 {[%emt 0:00:00]} 4. Nf3 {[%emt 0:00:00]} exd4 {[%emt 0:00:30]} 5. Bxc4 {[%emt 0:00:00]} Nc6 {[%emt 0:00:30]} 6. O-O {[%emt 0:00:30]} Be6 {[%emt 0:01:30]} 7. Bxe6 {[%emt 0:00:00]} fxe6 {[%emt 0:00:30]} 8. Qb3 {[%emt 0:00:00]} Qd7 {[%emt 0:00:30]} 9. Qxb7 {[%emt 0:00:00]} Rb8 {[%emt 0:00:00]} 10. Qa6 {[%emt 0:00:00]} Nf6 {[%emt 0:01:00]} 11. Nbd2 {[%emt 0:00:00]} Bd6 {[%emt 0:01:30]} 12. a3 {[%emt 0:02:00]} O-O {[%emt 0:04:30]} 13. b4 {[%emt 0:00:00]} e5 {[%emt 0:11:30]} 14. Ne1 {[%emt 0:05:00]} Ne7 {[%emt 0:15:30]} 15. Nd3 {[%emt 0:10:30]} g5 {[%emt 0:06:30]} 16. Nc4 {[%emt 0:09:30]} Ng6 {[%emt 0:00:30]} 17. f3 {[%emt 0:05:30]} g4 {[%emt 0:01:30]} 18. Bh6 {[%emt 0:03:30]} Rf7 {[%emt 0:00:00]} 19. f4 {[%emt 0:01:30]} Nxe4 {[%emt 0:04:00]} 20. fxe5 {[%emt 0:04:30]} Bf8 {[%emt 0:04:30]} 21. e6 {[%emt 0:05:30]} Rxf1+ {[%emt 0:00:30]} 22. Rxf1 {[%emt 0:00:00]} Qc8 {[%emt 0:01:30]} 23. Qc6 {[%emt 0:01:00]} Bxh6 {[%emt 0:00:30]} 24. Qxe4 {[%emt 0:02:30]} Qa6 {[%emt 0:03:30]} 25. Qd5 {[%emt 0:12:30]} Ne7 {[%emt 0:01:30]} 26. Qxd4 {[%emt 0:01:30]} Qxe6 {[%emt 0:01:30]} 27. Nc5 {[%emt 0:00:30]} Qd5 {[%emt 0:01:30]} 28. Qxg4+ {[%emt 0:01:30]} Kh8 {[%emt 0:00:30]} 29. Qe6 {[%emt 0:00:30]} Rg8 {[%emt 0:01:30]} 30. Qxd5 {[%emt 0:06:30]} Nxd5 {[%emt 0:00:30]} 31. Rf7 {[%emt 0:00:30]} Rg4 {[%emt 0:03:30]} 32. Ne5 {[%emt 0:03:30]} Rd4 {[%emt 0:01:30]} 33. Ne6 {[%emt 0:07:30]} Rd1+ {[%emt 0:06:30]} 34. Kf2 {[%emt 0:00:00]} Rd2+ {[%emt 0:00:30]} 35. Kg3 {[%emt 0:03:12]} Ne3 {[%emt 0:04:30]} 36. Rxc7 {[%emt 0:01:56]} 1-0